lending/lending_fUSD_20240621
["ID","MTS","AMOUNT","RATE_DAILY","PERIOD"]
[330103053,1718991082471,-906.33,0.00024098,4]
[330103054,1718991082481,-923.38,0.00024098,4]
[330103055,1718991082491,-1038.94,0.00024098,4]
[330103056,1718991082504,-2621.17,0.00024098,4]
[330103057,1718991082514,-500.0,0.00024098,4]
[330103058,1718991082529,-697.22,0.00024098,4]
[330103059,1718991082538,-500.0,0.00024098,4]
[330103060,1718991082548,-500.0,0.00024098,4]
[330103061,1718991082558,-714.72,0.00024098,4]
[330103062,1718991082567,-753.1,0.00024098,4]
[330103063,1718991082576,-1897.24,0.00024098,4]
[330103064,1718991082586,-500.0,0.00024098,4]
[330103065,1718991082598,-500.0,0.00024098,4]
[330103066,1718991082607,-1285.76,0.00024098,4]
[330103067,1718991082616,-500.0,0.00024098,4]
[330103068,1718991082625,-502.33,0.00024098,4]
[330103069,1718991082635,-500.0,0.00024098,4]
[330103070,1718991082644,-534.86,0.00024098,4]
[330103071,1718991082653,-500.0,0.00024098,4]
[330103072,1718991082663,-1041.21,0.00024098,4]
[330103073,1718991082672,-1219.33,0.00024098,4]
[330103074,1718991082681,-721.97,0.00024098,4]
[330103075,1718991082691,-500.0,0.00024098,4]
[330103076,1718991082701,-500.0,0.00024098,4]
[330103077,1718991082710,-500.0,0.00024098,4]
[330103078,1718991082719,-500.0,0.00024098,4]
[330103079,1718991082729,-773.32,0.00024098,4]
[330103080,1718991082739,-1205.31,0.00024098,4]
[330103081,1718991082748,-549.09,0.00024098,4]
[330103082,1718991082757,-715.25,0.00024098,4]
[330103083,1718991082767,-500.0,0.00024098,4]
[330103084,1718991082780,-500.0,0.00024098,4]
[330103085,1718991082789,-563.92,0.00024098,4]
[330103086,1718991082799,-500.0,0.00024098,4]
[330103087,1718991082808,-511.29,0.00024098,4]
[330103088,1718991082817,-500.0,0.00024098,4]
[330103089,1718991082827,-939.71,0.00024098,4]
[330103090,1718991082836,-1777.62,0.00024098,4]
[330103091,1718991082845,-500.0,0.00024098,4]
[330103092,1718991082855,-500.0,0.00024107,4]
[330103093,1718991082864,-778.08,0.00024107,4]
[330103094,1718991082874,-711.57,0.00024107,4]
[330103095,1718991082883,-500.0,0.00024107,4]
[330103096,1718991082892,-500.0,0.00024107,4]
[330103097,1718991082901,-500.0,0.00024107,4]
[330103098,1718991082911,-500.0,0.00024107,4]
[330103099,1718991082920,-811.37,0.00024107,4]
[330103100,1718991082930,-500.0,0.00024107,4]
[330103101,1718991082939,-500.0,0.00024107,4]
[330103102,1718991082949,-1988.28,0.00024107,4]
[330103103,1718991082961,-1545.69,0.00024107,4]
[330103104,1718991082971,-885.76,0.00024107,4]
[330103105,1718991082982,-846.41,0.00024107,4]
[330103106,1718991082993,-1105.64,0.00024107,4]
[330103107,1718991083003,-1441.35,0.00024107,4]
[330103108,1718991083012,-1115.8,0.00024107,4]
[330103109,1718991083027,-968.43,0.00024107,4]
[330103110,1718991083036,-2726.77,0.00024107,4]
[330103111,1718991083045,-500.0,0.00024107,4]
[330103112,1718991083056,-635.71,0.00024107,4]
[330103113,1718991083065,-500.0,0.00024107,4]
[330103114,1718991083077,-4273.14,0.00024107,4]
[330103115,1718991083087,-3752.39,0.00024107,4]
[330103116,1718991083098,-2270.24,0.00024107,4]
[330103117,1718991083108,-500.0,0.00024107,4]
[330103118,1718991083119,-12849.54,0.00024107,4]
[330103119,1718991083128,-3165.23,0.00024107,4]
[330103120,1718991083137,-847.05,0.00024107,4]
[330103121,1718991083147,-4761.65,0.00024107,4]
[330103122,1718991083156,-2414.13,0.00024107,4]
[330103123,1718991083166,-500.0,0.00024109,4]
[330103124,1718991083176,-500.0,0.00024109,4]
[330103125,1718991083185,-995.64,0.00024109,4]
[330103126,1718991083195,-655.96,0.00024109,4]
[330103127,1718991083205,-658.51,0.00024109,4]
[330103128,1718991083215,-531.81,0.00024109,4]
[330103129,1718991083224,-744.26,0.00024109,4]
[330103130,1718991083234,-500.0,0.00024109,4]
[330103131,1718991083243,-502.34125572,0.00024109,4]
[330103132,1718991083253,-742.09,0.00024109,4]
[330103133,1718991083261,-788.95,0.00024109,4]
[330103134,1718991083275,-500.0,0.00024109,4]
[330103135,1718991083284,-811.67,0.00024109,4]
[330103136,1718991083293,-576.54,0.00024109,4]
[330103137,1718991083302,-740.11,0.00024109,4]
[330103138,1718991083311,-500.0,0.00024109,4]
[330103139,1718991083320,-532.25,0.00024109,4]
[330103140,1718991083329,-1390.89,0.00024109,4]
[330103141,1718991083338,-621.86,0.00024109,4]
[330103142,1718991083347,-500.0,0.00024109,4]
[330103143,1718991083356,-500.0,0.00024109,4]
[330103144,1718991083365,-500.0,0.00024109,4]
[330103145,1718991083375,-500.0,0.00024109,4]
[330103146,1718991083384,-729.92,0.00024109,4]
[330103147,1718991083394,-747.87,0.00024109,4]
[330103148,1718991083403,-500.0,0.00024109,4]
[330103149,1718991083413,-1000.0,0.00024132,2]
[330103150,1718991083422,-809.02,0.00024362,4]
[330103151,1718991083431,-607.62,0.00024362,4]
[330103152,1718991083441,-1381.07,0.00024362,4]
[330103153,1718991083450,-1642.65,0.00024369,4]
[330103154,1718991083460,-500.0,0.00024369,4]
[330103155,1718991083469,-978.25,0.00024369,4]
[330103156,1718991083479,-2228.42,0.0002437,4]
[330103158,1718991083487,-2227.32,0.0002437,4]
[330103159,1718991083498,-1250.08,0.0002437,4]
[330103160,1718991083507,-1964.51,0.0002437,4]
[330103161,1718991083524,-5117.57,0.0002437,4]
[330103162,1718991083534,-4615.24,0.0002437,4]
[330103163,1718991083543,-6593.77,0.0002437,4]
[330103164,1718991083552,-1613.58,0.0002437,4]
[330103165,1718991083562,-4640.51,0.0002437,4]
[330103166,1718991083571,-2613.48,0.0002437,4]
[330103167,1718991083582,-1707.02,0.0002437,4]
[330103168,1718991083592,-6483.65,0.0002437,4]
[330103169,1718991083602,-503.57,0.0002437,4]
[330103170,1718991083611,-701.81,0.0002437,4]
[330103171,1718991083621,-2832.55,0.0002437,4]
[330103172,1718991083630,-2689.75,0.0002437,4]
[330103173,1718991083640,-2000.06,0.0002437,4]
[330103174,1718991083650,-3251.41,0.0002437,4]
[330103175,1718991083660,-2188.55,0.0002437,4]
[330103176,1718991083670,-2431.29,0.0002437,4]
[330103177,1718991083680,-7810.43,0.0002437,4]
[330103178,1718991083690,-500.0,0.0002437,4]
[330103179,1718991083700,-643.33,0.0002437,4]
[330103180,1718991083709,-3995.39,0.0002437,4]
[330103181,1718991083721,-3344.75,0.0002437,4]
[330103182,1718991083731,-9018.71,0.0002437,4]
[330103183,1718991083741,-5283.93,0.0002437,4]
[330103184,1718991083750,-2784.89,0.0002437,4]
[330103185,1718991083759,-1033.86,0.0002437,4]
[330103186,1718991083771,-1160.67,0.0002437,4]
[330103187,1718991083781,-2147.09,0.0002437,4]
[330103188,1718991083791,-2161.62,0.0002437,4]
[330103189,1718991083801,-32976.13,0.0002437,4]
[330103190,1718991083810,-3218.08,0.0002437,4]
[330103191,1718991083820,-500.0,0.00024371,4]
[330103192,1718991083829,-898.14,0.00024371,4]
[330103193,1718991083839,-601.37515365,0.00024371,4]
[330103194,1718991083848,-1030.59,0.00024371,4]
[330103195,1718991083857,-704.08,0.00024371,4]
[330103196,1718991083866,-500.0,0.00024371,4]
[330103197,1718991083874,-539.94,0.00024371,4]
[330103198,1718991083883,-500.0,0.00024371,4]
[330103199,1718991083891,-500.0,0.00024371,4]
[330103200,1718991083899,-1013.17,0.00024371,4]
[330103201,1718991083908,-500.0,0.00024371,4]
[330103202,1718991083915,-613.35,0.00024371,4]
[330103203,1718991083923,-833.51,0.00024371,4]
[330103204,1718991083931,-840.13,0.00024371,4]
[330103205,1718991083939,-227.95195455,0.00024371,4]
[330103206,1718991083948,-500.0,0.00024371,4]
[330103207,1718991083957,-500.0,0.00024371,4]
[330103208,1718991083967,-746.6,0.00024371,4]
[330103209,1718991083977,-193.31,0.00024371,4]
[330103210,1718991083986,-500.0,0.00024371,4]
[330103211,1718991083995,-500.0,0.00024371,4]
[330103212,1718991084005,-500.0,0.00024371,4]
[330103213,1718991084014,-500.0,0.00024371,4]
[330103214,1718991084026,-500.0,0.00024371,4]
[330103215,1718991084035,-344.77404421,0.00024371,4]
[330103216,1718991084044,-500.0,0.00024371,4]
[330103217,1718991084053,-500.0,0.00024371,4]
[330103218,1718991084063,-712.07,0.00024371,4]
[330103219,1718991084073,-1108.2,0.00024371,4]
[330103220,1718991084082,-500.0,0.00024371,4]
[330103221,1718991084092,-500.0,0.00024371,4]
[330103222,1718991084101,-511.98,0.00024371,4]
[330103223,1718991084110,-702.16,0.00024371,4]
[330103224,1718991084120,-500.0,0.00024371,4]
[330103225,1718991084130,-700.08,0.00024371,4]
[330103226,1718991084139,-500.0,0.00024371,4]
[330103227,1718991084149,-924.62,0.00024371,4]
[330103228,1718991084159,-500.0,0.00024371,4]
[330103229,1718991084168,-1537.14,0.00024371,4]
[330103230,1718991084178,-500.0,0.00024371,4]
[330103231,1718991084188,-1149.22,0.00024371,4]
[330103232,1718991084198,-500.0,0.00024371,4]
[330103233,1718991084208,-708.0,0.00024371,4]
[330103234,1718991084218,-500.0,0.00024371,4]
[330103235,1718991084227,-500.0,0.00024371,4]
[330103236,1718991084237,-500.0,0.00024371,4]
[330103237,1718991084248,-500.0,0.00024371,4]
[330103238,1718991084258,-508.25,0.00024371,4]
[330103239,1718991084267,-579.98,0.00024371,4]
[330103240,1718991084279,-571.41,0.00024371,4]
[330103241,1718991084288,-642.8,0.00024371,4]
[330103242,1718991084297,-668.3,0.00024371,4]
[330103243,1718991084306,-568.30010336,0.00024371,4]
[330103244,1718991084315,-500.0,0.00024371,4]
[330103245,1718991084324,-638.78,0.00024371,4]
[330103246,1718991084334,-726.73,0.00024371,4]
[330103247,1718991084344,-731.34,0.00024371,4]
[330103248,1718991084353,-500.0,0.00024371,4]
[330103249,1718991084363,-934.13,0.00024371,4]
[330103250,1718991084373,-521.3,0.00024371,4]
[330103251,1718991084383,-500.0,0.00024371,4]
[330103252,1718991084393,-522.48,0.00024371,4]
[330103253,1718991084402,-696.93,0.00024371,4]
[330103254,1718991084411,-837.37,0.00024371,4]
[330103255,1718991084421,-500.0,0.00024371,4]
[330103256,1718991084431,-1298.27,0.00024371,4]
[330103257,1718991084440,-676.04,0.00024371,4]
[330103258,1718991084450,-500.0,0.00024371,4]
[330103259,1718991084460,-500.0,0.00024371,4]
[330103260,1718991084469,-955.91,0.00024371,4]
[330103261,1718991084479,-565.69,0.00024371,4]
[330103262,1718991084489,-500.0,0.00024371,4]
[330103263,1718991084503,-500.0,0.00024371,4]
[330103264,1718991084513,-434.58,0.00024371,7]
[330103265,1718991084591,-500.0,0.00024371,4]
[330103266,1718991084601,-500.0,0.00024371,4]
[330103267,1718991084611,-1005.8,0.00024371,4]
[330103268,1718991084620,-1487.67,0.00024371,4]
[330103269,1718991084629,-500.0,0.00024371,4]
[330103270,1718991084639,-500.0,0.00024371,4]
[330103271,1718991084649,-1302.06,0.00024371,4]
[330103272,1718991084659,-428.9,0.00024371,4]
[330103273,1718991084669,-500.0,0.00024371,4]
[330103274,1718991084678,-1105.45,0.00024371,4]
[330103275,1718991084688,-443.79,0.00024371,4]
[330103276,1718991084697,-339.94359431,0.00024371,4]
[330103277,1718991084707,-861.17,0.00024371,4]
[330103278,1718991084716,-500.0,0.00024371,4]
[330103279,1718991084725,-500.0,0.00024371,4]
[330103280,1718991084735,-500.0,0.00024371,4]
[330103281,1718991084744,-500.0,0.00024371,4]
[330103282,1718991084754,-500.0,0.00024371,4]
[330103283,1718991084764,-500.0,0.00024371,4]
[330103284,1718991084777,-525.71,0.00024371,4]
[330103285,1718991084787,-500.0,0.00024371,4]
[330103286,1718991084796,-1109.1,0.00024371,4]
[330103287,1718991084806,-1605.24,0.00024371,4]
[330103288,1718991084815,-500.0,0.00024371,4]
[330103289,1718991084824,-391.75,0.00024371,4]
[330103290,1718991084834,-812.48,0.00024371,4]
[330103291,1718991084844,-500.0,0.00024371,4]
[330103292,1718991084853,-522.66,0.00024371,4]
[330103293,1718991084863,-593.96487398,0.00024371,4]
[330103294,1718991084873,-500.0,0.00024371,4]
[330103295,1718991084883,-2349.44,0.00024371,4]
[330103296,1718991084893,-542.96,0.00024371,4]
[330103297,1718991084902,-1118.35,0.00024371,4]
[330103298,1718991084912,-500.0,0.00024371,4]
[330103299,1718991084922,-500.0,0.00024371,4]
[330103300,1718991084931,-500.0,0.00024371,4]
[330103301,1718991084941,-500.0,0.00024371,4]
[330103302,1718991084950,-500.0,0.00024371,4]
[330103303,1718991084960,-1117.24,0.00024371,4]
[330103304,1718991084970,-1118.14,0.00024371,4]
[330103305,1718991084979,-1022.28,0.00024371,4]
[330103306,1718991084988,-500.0,0.00024371,4]
[330103307,1718991084998,-500.0,0.00024371,4]
[330103308,1718991085008,-634.94,0.00024371,4]
[330103309,1718991085018,-2155.83,0.00024371,4]
[330103310,1718991085031,-1399.02,0.00024371,4]
[330103311,1718991085040,-1150.63,0.00024371,4]
[330103312,1718991085049,-947.93,0.00024371,4]
[330103313,1718991085058,-917.58,0.00024371,4]
[330103314,1718991085067,-500.0,0.00024371,4]
[330103315,1718991085076,-800.03,0.00024371,4]
[330103316,1718991085085,-910.29,0.00024371,4]
[330103317,1718991085094,-871.28,0.00024371,4]
[330103318,1718991085104,-707.22,0.00024371,4]
[330103319,1718991085114,-721.45,0.00024371,4]
[330103320,1718991085124,-500.0,0.00024371,4]
[330103321,1718991085133,-2952.26,0.00024371,4]
[330103322,1718991085143,-1217.47,0.00024371,4]
[330103323,1718991085152,-609.35,0.00024371,4]
[330103324,1718991085162,-539.26,0.00024371,4]
[330103325,1718991085171,-1243.83,0.00024371,4]
[330103326,1718991085180,-910.08,0.00024371,4]
[330103327,1718991085190,-2065.38,0.00024371,4]
[330103328,1718991085199,-2397.68,0.00024371,4]
[330103329,1718991085209,-679.24,0.00024371,4]
[330103330,1718991085218,-1399.75,0.00024371,4]
[330103331,1718991085227,-700.96,0.00024371,4]
[330103332,1718991085236,-2171.32,0.00024371,4]
[330103333,1718991085246,-500.0,0.00024371,4]
[330103334,1718991085256,-639.07,0.00024371,4]
[330103335,1718991085265,-640.29,0.00024371,4]
[330103336,1718991085276,-2562.05,0.00024371,4]
[330103337,1718991085287,-1478.18,0.00024371,4]
[330103338,1718991085296,-531.96,0.00024371,4]
[330103339,1718991085305,-370.64,0.00024371,4]
[330103340,1718991085315,-1171.77,0.00024371,4]
[330103341,1718991085325,-688.59,0.00024371,4]
[330103342,1718991085336,-500.0,0.00024371,4]
[330103343,1718991085345,-1272.01,0.00024371,4]
[330103344,1718991085355,-500.0,0.00024371,4]
[330103345,1718991085364,-2945.36,0.00024371,4]
[330103346,1718991085374,-500.0,0.00024371,4]
[330103347,1718991085384,-1467.19,0.00024371,4]
[330103348,1718991085393,-710.57,0.00024371,4]
[330103349,1718991085402,-661.54,0.00024371,4]
[330103350,1718991085412,-629.62,0.00024371,4]
[330103351,1718991085421,-3697.34,0.00024371,4]
[330103352,1718991085431,-655.01,0.00024371,4]
[330103353,1718991085440,-500.0,0.00024371,4]
[330103354,1718991085450,-694.0,0.00024371,4]
[330103355,1718991085460,-500.0,0.00024371,4]
[330103356,1718991085470,-22390.58,0.00024371,4]
[330103357,1718991085480,-500.0,0.00024371,4]
[330103358,1718991085490,-2889.89,0.00024371,4]
[330103359,1718991085500,-1093.35,0.00024371,4]
[330103360,1718991085510,-500.0,0.00024371,4]
[330103361,1718991085527,-500.0,0.00024371,4]
[330103362,1718991085536,-2343.28,0.00024371,4]
[330103363,1718991085545,-694.8,0.00024371,4]
[330103364,1718991085555,-1540.92,0.00024371,4]
[330103365,1718991085566,-735.45,0.00024371,4]
[330103366,1718991085576,-500.0,0.00024371,4]
[330103367,1718991085585,-1058.1,0.00024371,4]
[330103368,1718991085597,-1944.21,0.00024371,4]
[330103369,1718991085607,-1428.73,0.00024371,4]
[330103370,1718991085617,-500.0,0.00024371,4]
[330103371,1718991085626,-733.12,0.00024371,4]
[330103372,1718991085636,-500.0,0.00024371,4]
[330103373,1718991085645,-818.18,0.00024371,4]
[330103374,1718991085654,-500.0,0.00024371,4]
[330103375,1718991085663,-500.0,0.00024371,4]
[330103376,1718991085672,-849.22,0.00024371,4]
[330103377,1718991085681,-991.48,0.00024371,4]
[330103378,1718991085691,-500.0,0.00024371,4]
[330103379,1718991085700,-804.03,0.00024371,4]
[330103380,1718991085709,-1606.1,0.00024371,4]
[330103381,1718991085719,-994.93,0.00024371,4]
[330103382,1718991085729,-500.0,0.00024371,4]
[330103383,1718991085739,-500.0,0.00024371,4]
[330103384,1718991085748,-2297.03,0.00024371,4]
[330103385,1718991085758,-637.26,0.00024371,4]
[330103386,1718991085767,-718.56,0.00024371,4]
[330103387,1718991085781,-928.11,0.00024371,4]
[330103388,1718991085791,-1655.79,0.00024371,4]
[330103389,1718991085802,-1537.71,0.00024371,4]
[330103390,1718991085811,-604.61,0.00024371,4]
[330103391,1718991085822,-500.0,0.00024371,4]
[330103392,1718991085832,-1222.36,0.00024371,4]
[330103393,1718991085842,-908.98,0.00024371,4]
[330103394,1718991085851,-668.91,0.00024371,4]
[330103395,1718991085861,-533.73,0.00024371,4]
[330103396,1718991085871,-1075.97,0.00024371,4]
[330103397,1718991085880,-1495.2,0.00024371,4]
[330103398,1718991085889,-772.88,0.00024371,4]
[330103399,1718991085899,-1743.39,0.00024371,4]
[330103400,1718991085909,-1365.42,0.00024371,4]
[330103401,1718991085920,-1024.61,0.00024371,4]
[330103402,1718991085930,-500.0,0.00024371,4]
[330103403,1718991085940,-39.33788233,0.00024371,4]
[330103404,1718991086238,-500.0,0.00023001,4]
[330103405,1718991086248,-500.0,0.00023273,4]
[330103406,1718991086258,-614.22,0.00023275,4]
[330103407,1718991086267,-500.0,0.00023547,4]
[330103408,1718991086282,-1952.02,0.00023559,4]
[330103409,1718991086291,-500.0,0.00023821,4]
[330103410,1718991086300,-1952.02,0.00023833,4]
[330103411,1718991086312,-500.0,0.00024095,4]
[330103412,1718991086321,-1952.02,0.00024107,4]
[330103413,1718991086331,-500.0,0.00024369,4]
[330103414,1718991086341,-1638.21211767,0.00024371,4]
[330103415,1718991086350,-791.26,0.00024371,4]
[330103416,1718991086360,-500.0,0.00024371,4]
[330103417,1718991086369,-342.02885249,0.00024371,4]
[330103418,1718991086381,-1575.89114751,0.00024371,4]
[330103419,1718991086390,-821.89,0.00024371,4]
[330103420,1718991086400,-500.0,0.00024371,4]
[330103421,1718991086409,-2715.91,0.00024371,4]
[330103422,1718991086419,-2232.82,0.00024371,4]
[330103423,1718991086428,-641.92,0.00024371,4]
[330103424,1718991086437,-500.0,0.00024371,4]
[330103425,1718991086446,-595.1,0.00024371,4]
[330103426,1718991086456,-3946.49,0.00024371,4]
[330103427,1718991086465,-686.32,0.00024371,4]
[330103428,1718991086475,-500.0,0.00024371,4]
[330103429,1718991086484,-500.0,0.00024372,4]
[330103430,1718991086494,-500.0,0.00024372,4]
[330103431,1718991086508,-201.08292181,0.00024372,4]
[330103432,1718991086583,-322.18707819,0.00024372,4]
[330103433,1718991086595,-500.0,0.00024372,4]
[330103434,1718991086604,-795.26,0.00024372,4]
[330103435,1718991086614,-706.08,0.00024372,4]
[330103436,1718991086624,-700.27,0.00024372,4]
[330103437,1718991086634,-364.59476184,0.00024372,4]
[330103438,1718991086648,-135.40523816,0.00024372,4]
[330103439,1718991086659,-364.72759125,0.00024372,4]
[330103440,1718991086673,-135.27240875,0.00024372,4]
[330103441,1718991086683,-500.0,0.00024372,4]
[330103442,1718991086694,-822.98,0.00024372,4]
[330103443,1718991086704,-510.29,0.00024372,4]
[330103444,1718991086714,-526.66,0.00024372,4]
[330103445,1718991086725,-594.66,0.00024372,4]
[330103446,1718991086735,-500.0,0.00024372,4]
[330103447,1718991086746,-500.0,0.00024372,4]
[330103448,1718991086756,-523.22,0.00024372,4]
[330103449,1718991086766,-603.76,0.00024372,4]
[330103450,1718991086779,-500.0,0.00024372,4]
[330103451,1718991086788,-500.0,0.00024372,4]
[330103452,1718991086797,-500.0,0.00024372,4]
[330103453,1718991086807,-500.0,0.00024372,4]
[330103454,1718991086817,-500.0,0.00024372,4]
[330103455,1718991086826,-500.0,0.00024372,4]
[330103456,1718991086836,-500.0,0.00024372,4]
[330103457,1718991086846,-753.57,0.00024372,4]
[330103458,1718991086855,-500.0,0.00024372,4]
[330103459,1718991086865,-854.73,0.00024372,4]
[330103460,1718991086875,-553.24,0.00024372,4]
[330103461,1718991086884,-500.0,0.00024372,4]
[330103462,1718991086894,-500.0,0.00024372,4]
[330103463,1718991086904,-508.41,0.00024372,4]
[330103464,1718991086914,-500.0,0.00024372,4]
[330103465,1718991086923,-500.0,0.00024372,4]
[330103466,1718991086932,-500.0,0.00024372,4]
[330103467,1718991086942,-500.0,0.00024372,4]
[330103468,1718991086952,-500.0,0.00024372,4]
[330103469,1718991086961,-772.45,0.00024372,4]
[330103470,1718991086971,-500.0,0.00024372,4]
[330103471,1718991086981,-500.0,0.00024372,4]
[330103472,1718991086990,-500.0,0.00024372,4]
[330103473,1718991087002,-500.0,0.00024372,4]
[330103474,1718991087011,-500.0,0.00024372,4]
[330103475,1718991087021,-500.0,0.00024372,4]
[330103476,1718991087032,-1474.02,0.00024372,4]
[330103477,1718991087041,-1769.35,0.00024372,4]
[330103478,1718991087050,-97.38759275,0.00024372,4]
[330103479,1718991087064,-402.61240725,0.00024372,4]
[330103480,1718991087073,-1112.63,0.00024372,4]
[330103481,1718991087082,-569.56,0.00024372,4]
[330103482,1718991087091,-298.48264289,0.00024372,4]
[330103483,1718991087102,-201.51735711,0.00024372,4]
[330103484,1718991087112,-500.0,0.00024372,4]
[330103485,1718991087122,-472.48264289,0.00024372,4]
[330103486,1718991087133,-27.51735711,0.00024372,4]
[330103487,1718991087143,-500.0,0.00024372,4]
[330103488,1718991087154,-758.73,0.00024372,4]
[330103489,1718991087164,-594.05,0.00024372,4]
[330103490,1718991087174,-1059.07,0.00024372,4]
[330103491,1718991087184,-500.0,0.00024372,4]
[330103492,1718991087194,-500.0,0.00024372,4]
[330103493,1718991087203,-965.65,0.00024372,4]
[330103494,1718991087213,-906.33,0.00024372,4]
[330103495,1718991087222,-923.38,0.00024372,4]
[330103496,1718991087231,-1038.94,0.00024372,4]
[330103497,1718991087242,-2621.17,0.00024372,4]
[330103498,1718991087251,-500.0,0.00024372,4]
[330103499,1718991087261,-697.22,0.00024372,4]
[330103500,1718991087271,-215.50602526,0.00024372,4]
[330103501,1718991087284,-284.49397474,0.00024372,4]
[330103502,1718991087293,-500.0,0.00024372,4]
[330103503,1718991087303,-714.72,0.00024372,4]
[330103504,1718991087314,-753.1,0.00024372,4]
[330103505,1718991087323,-1897.24,0.00024372,4]
[330103506,1718991087334,-500.0,0.00024372,4]
[330103507,1718991087343,-500.0,0.00024372,4]
[330103508,1718991087352,-1285.76,0.00024372,4]
[330103509,1718991087362,-500.0,0.00024372,4]
[330103510,1718991087372,-502.33,0.00024372,4]
[330103511,1718991087381,-500.0,0.00024372,4]
[330103512,1718991087390,-534.86,0.00024372,4]
[330103513,1718991087399,-500.0,0.00024372,4]
[330103514,1718991087409,-1041.21,0.00024372,4]
[330103515,1718991087418,-1103.27066673,0.00024372,4]
[330103516,1718991087429,-116.05933327,0.00024372,4]
[330103517,1718991087439,-721.97,0.00024372,4]
[330103518,1718991087448,-500.0,0.00024372,4]
[330103519,1718991087458,-500.0,0.00024372,4]
[330103520,1718991087467,-500.0,0.00024372,4]
[330103521,1718991087476,-500.0,0.00024372,4]
[330103522,1718991087486,-773.32,0.00024372,4]
[330103523,1718991087495,-1205.31,0.00024372,4]
[330103524,1718991087506,-549.09,0.00024372,4]
[330103525,1718991087520,-715.25,0.00024372,4]
[330103526,1718991087532,-500.0,0.00024372,4]
[330103527,1718991087542,-500.0,0.00024372,4]
[330103528,1718991087551,-563.92,0.00024372,4]
[330103529,1718991087560,-500.0,0.00024372,4]
[330103530,1718991087569,-511.29,0.00024372,4]
[330103531,1718991087579,-500.0,0.00024372,4]
[330103532,1718991087591,-939.71,0.00024372,4]
[330103533,1718991087600,-1777.62,0.00024372,4]
[330103534,1718991087610,-500.0,0.00024372,4]
[330103535,1718991087619,-500.0,0.00024381,4]
[330103536,1718991087628,-778.08,0.00024381,4]
[330103537,1718991087638,-711.57,0.00024381,4]
[330103538,1718991087647,-500.0,0.00024381,4]
[330103539,1718991087656,-500.0,0.00024381,4]
[330103540,1718991087665,-500.0,0.00024381,4]
[330103541,1718991087675,-500.0,0.00024381,4]
[330103542,1718991087686,-280.48109451,0.00024381,4]
[330103543,1718991087698,-530.88890549,0.00024381,4]
[330103544,1718991087707,-500.0,0.00024381,4]
[330103545,1718991087716,-158.30752923,0.00024381,4]
[330103546,1718991087729,-341.69247077,0.00024381,4]
[330103547,1718991087738,-136.19531693,0.00024381,4]
[330103548,1718991087750,-286.93626806,0.00024381,4]
[330103549,1718991087762,-1565.14841501,0.00024381,4]
[330103550,1718991087772,-1545.69,0.00024381,4]
[330103551,1718991087782,-885.76,0.00024381,4]
[330103552,1718991087792,-846.41,0.00024381,4]
[330103553,1718991087801,-1105.64,0.00024381,4]